{"text_format":"1","workbook":"xlsx","n_sheets":8,"sheets":["Общая информация","Ед. поставщик п.4 ч.1","Ед. поставщик п.5 ч.1","Ед.поставщик за искл. п.4,5 ч.1","Состоявшиеся аукционы","Несостоявшиеся аукционы","Иные конкурентные закупки","Настройки"],"not_rendered":{"charts":0,"images":0,"macros":1,"external_links":0,"defined_names":1,"comments":0,"pivot_tables":0},"unopened":[],"bounds":{"document_bytes":16777216,"sheet_cells":100000,"rows_first":2000,"rows_last":500,"rows_between":2000,"halvings":0,"cell_chars":16384,"cell_head_chars":4096},"cells_cut":0,"cells_raw":0,"read":"whole","date_system":"1900"}

{"sheet":"Общая информация","index":0,"n_rows":19,"n_cols":13,"rows_kept":19,"cut":false,"hidden":false,"merged":[[4,7,4,9],[4,12,4,13],[10,12,10,13],[10,9,10,11],[3,0,3,1],[3,4,3,6],[3,7,3,9],[3,12,3,13],[4,0,4,1],[7,0,7,2],[7,3,7,5],[7,6,7,8],[7,12,7,13],[7,9,7,11],[4,4,4,6],[9,0,9,2],[9,3,9,5],[9,6,9,8],[9,12,9,13],[9,9,9,11],[8,0,8,2],[8,3,8,5],[8,6,8,8],[8,12,8,13],[8,9,8,11],[12,9,12,11],[14,0,14,2],[14,3,14,5],[14,6,14,8],[14,12,14,13],[14,9,14,11],[12,0,12,2],[12,3,12,5],[12,6,12,8],[13,9,13,11],[13,12,13,13],[0,0,0,3],[0,4,0,13],[18,0,19,2],[18,3,19,6],[13,0,13,2],[13,3,13,5],[13,6,13,8],[11,12,11,13],[11,9,11,11],[10,0,10,2],[10,3,10,5],[10,6,10,8],[11,6,11,8],[11,0,11,2],[11,3,11,5],[12,12,12,13]]}
["Наименование организации:",null,null,null,"МБОУ СОШ №6"]
[]
[]
["СГОЗ  (общий)",null,8324627.0899999999,null,"п.4 (10% от СГОЗ или 2 000 000)",null,null,2000000,null,null,null,"п.5 (50% СГОЗ)",4477819.9000000004]
["СГОЗ (остаток)",null,{"$f":"C4-G15+J15","v":2659851.1800000002},null,"п.4 (остаток)",null,null,{"$f":"H4-G12","v":1007290.9299999999},null,null,null,"п.5 (остаток)",{"$f":"M4-G13","v":1214574.6400000001}]
[]
[]
["Способ определения поставщика (подрядчика, исполнителя)",null,null,"Начальная (максимальная) цена контракта",null,null,"Фактическая цена контракта",null,null,"Расторжение контракта по соглашению сторон",null,null,"Экономия "]
["Состоявшиеся аукционы",null,null,{"$f":"'Состоявшиеся аукционы'!G2","v":0},null,null,{"$f":"'Состоявшиеся аукционы'!Q2","v":0},null,null,{"$f":"'Состоявшиеся аукционы'!AB2","v":0},null,null,{"$f":"D9-G9","v":0}]
["Несостоявшиеся аукционы",null,null,{"$f":"'Несостоявшиеся аукционы'!G2","v":0},null,null,{"$f":"'Несостоявшиеся аукционы'!Q2","v":0},null,null,{"$f":"'Несостоявшиеся аукционы'!AB2","v":0},null,null,0]
["Иные конкурентные закупки",null,null,{"$f":"'Иные конкурентные закупки'!G2","v":1103383.5},null,null,{"$f":"'Иные конкурентные закупки'!Q2","v":1103383.5},null,null,{"$f":"'Иные конкурентные закупки'!AB2","v":170257.9},null,null,0]
["Ед. поставщик п.4 ч.1 ",null,null,{"$f":"'Ед. поставщик п.4 ч.1'!H2","v":992709.07000000007},null,null,{"$f":"D12","v":992709.07000000007},null,null,{"$f":"'Ед. поставщик п.4 ч.1'!V2","v":0},null,null,0]
["Ед. поставщик п. 5 ч. 1",null,null,{"$f":"'Ед. поставщик п.5 ч.1'!H2","v":3263245.2600000002},null,null,{"$f":"D13","v":3263245.2600000002},null,null,{"$f":"'Ед. поставщик п.5 ч.1'!V2","v":252038},null,null,0]
["Ед.поставщик за искл. п.4,5 ч.1",null,null,{"$f":"'Ед.поставщик за искл. п.4,5 ч.1'!G2","v":743423.69},null,null,{"$f":"D14","v":743423.69},null,null,{"$f":"'Ед.поставщик за искл. п.4,5 ч.1'!T2","v":15689.71},null,null,0]
["Всего",null,null,{"$f":"SUM(D9:D14)","v":6102761.5199999996},null,null,{"$f":"SUM(G9:G14)","v":6102761.5199999996},null,null,{"$f":"SUM(J9:J14)","v":437985.61000000004},null,null,0]
[]
[]
[]
["Всего средств потрачено по заключенным контрактам",null,null,{"$f":"'Ед. поставщик п.4 ч.1'!P2+'Ед. поставщик п.5 ч.1'!P2+'Ед.поставщик за искл. п.4,5 ч.1'!N2+'Состоявшиеся аукционы'!V2+'Несостоявшиеся аукционы'!V2+'Иные конкурентные закупки'!V2","v":4131906.4400000004}]

{"sheet":"Ед. поставщик п.4 ч.1","index":1,"n_rows":84,"n_cols":24,"rows_kept":84,"cut":false,"hidden":false,"merged":[[43,0,45,0],[43,14,45,14],[43,20,45,20],[43,1,45,1],[43,21,45,21],[43,2,45,2],[43,22,45,22],[35,0,38,0],[35,14,38,14],[35,20,38,20],[35,1,38,1],[35,21,38,21],[35,2,38,2],[35,22,38,22],[35,6,38,6],[35,7,38,7],[35,8,38,8],[35,9,38,9],[35,10,38,10],[35,11,38,11],[35,12,38,12],[43,9,45,9],[43,10,45,10],[43,11,45,11],[23,0,24,0],[23,14,24,14],[23,20,24,20],[23,1,24,1],[23,21,24,21],[23,2,24,2],[23,22,24,22],[23,3,24,3],[23,4,24,4],[23,5,24,5],[23,6,24,6],[23,7,24,7],[23,8,24,8],[23,9,24,9],[23,10,24,10],[23,11,24,11],[23,12,24,12],[2,0,2,4],[1,18,1,20],[1,13,1,14],[3,9,3,10],[3,12,3,13],[3,14,3,15],[1,10,1,12],[8,12,9,12],[10,0,13,0],[10,14,13,14],[10,20,13,20],[10,1,13,1],[10,2,13,2],[29,0,32,0],[29,14,32,14],[29,20,32,20],[29,1,32,1],[27,0,28,0],[27,14,28,14],[27,20,28,20],[27,1,28,1],[8,22,9,22],[8,5,9,5],[8,6,9,6],[8,7,9,7],[8,8,9,8],[8,9,9,9],[8,10,9,10],[8,11,9,11],[8,0,9,0],[8,14,9,14],[8,20,9,20],[8,1,9,1],[8,21,9,21],[8,2,9,2],[8,3,9,3],[8,4,9,4],[27,22,28,22],[27,3,28,3],[27,4,28,4],[27,5,28,5],[27,6,28,6],[27,7,28,7],[27,8,28,8],[27,9,28,9],[27,10,28,10],[27,11,28,11],[27,12,28,12],[27,21,28,21],[27,2,28,2],[29,5,32,5],[29,6,32,6],[29,7,32,7],[29,8,32,8],[29,9,32,9],[29,10,32,10],[29,11,32,11],[29,12,32,12],[10,22,13,22],[10,3,13,3],[10,4,13,4],[10,5,13,5],[10,6,13,6],[10,7,13,7],[10,8,13,8],[10,9,13,9],[10,10,13,10],[10,11,13,11],[10,12,13,12],[10,21,13,21],[29,21,32,21],[29,2,32,2],[29,22,32,22],[29,3,32,3],[29,4,32,4],[35,3,38,3],[35,4,38,4],[35,5,38,5],[43,12,45,12],[43,3,45,3],[43,4,45,4],[43,5,45,5],[43,6,45,6],[43,7,45,7],[43,8,45,8],[40,0,42,0],[40,14,42,14],[40,20,42,20],[40,1,42,1],[40,21,42,21],[40,2,42,2],[40,22,42,22],[40,3,42,3],[40,4,42,4],[40,5,42,5],[40,6,42,6],[40,7,42,7],[40,8,42,8],[40,9,42,9],[40,10,42,10],[40,11,42,11],[40,12,42,12],[48,0,51,0],[48,14,51,14],[48,20,51,20],[48,1,51,1],[48,21,51,21],[48,2,51,2],[48,22,51,22],[48,3,51,3],[48,4,51,4],[48,5,51,5],[48,6,51,6],[48,7,51,7],[48,8,51,8],[48,9,51,9],[48,10,51,10],[48,11,51,11],[48,12,51,12],[65,0,66,0],[65,14,66,14],[65,20,66,20],[65,1,66,1],[65,21,66,21],[65,2,66,2],[65,22,66,22],[65,3,66,3],[65,4,66,4],[65,5,66,5],[65,6,66,6],[65,7,66,7],[65,8,66,8],[65,9,66,9],[65,10,66,10],[65,11,66,11],[65,12,66,12],[67,0,68,0],[67,14,68,14],[67,20,68,20],[67,1,68,1],[67,21,68,21],[67,2,68,2],[67,22,68,22],[67,3,68,3],[67,4,68,4],[67,5,68,5],[67,6,68,6],[67,7,68,7],[67,8,68,8],[67,9,68,9],[67,10,68,10],[67,11,68,11],[67,12,68,12],[72,0,73,0],[72,14,73,14],[72,20,73,20],[72,1,73,1],[72,21,73,21],[72,2,73,2],[72,22,73,22],[72,3,73,3],[72,4,73,4],[72,5,73,5],[72,6,73,6],[72,7,73,7],[72,8,73,8],[72,9,73,9],[72,10,73,10],[72,11,73,11],[72,12,73,12],[14,0,19,0],[14,14,19,14],[14,20,19,20],[14,1,19,1],[14,21,19,21],[14,2,19,2],[14,22,19,22],[14,3,19,3],[14,4,19,4],[14,5,19,5],[14,6,19,6],[14,7,19,7],[14,8,19,8],[14,9,19,9],[14,10,19,10],[14,11,19,11],[14,12,19,12]]}
[]
[null,null,null,null,null,null,"Сумма заключенных контрактов",{"$f":"SUM(H9:H10000)","v":992709.07000000007},null,null,null,null,null,"Сумма средств выплаченных по контрактам",null,{"$f":"SUM(P9:P10000)","v":867068.82},null,null,"Общая сумма расторжений по контрактам/договорам",null,null,{"$f":"SUM(V9:V10000)","v":0}]
[]
[]
[]
["№ п/п","Наименование муниципальной программы, национального или регионального проекта","Контракт заключен в электронном виде посредством                             АИС \"Портал поставщиков\"   (Да/Нет)","Код бюджетной классификации","№ договора/контракта","Дата заключения договора/контракта","Предмет договора/контракта","Цена договора/контракта","Остаток по контракту","ИНН поставщика (подрядчика, исполнителя) ","Поставщик (подрядчик, исполнитель)","СМП и СОНО                       (да/нет)","Сроки поставки товара (оказания услуги, выполнения работы), согласно договора/контракта; Предоставление документов на оплату Заказчику","Фактическая дата поставки товара (оказания услуги, выполнения работы)","Сроки оплаты согласно договора/контракта","Сумма согласно документа об исполнении контракта заказчиком","Фактическая дата оплаты","Изменение контракта (№, дата)","Изменение контракта (увеличение цены контракта в рублях)","Изменение контракта (уменьшение цены контракта в рублях)","Расторжение контракта (№, дата)","Сумма расторжения в рублях","Примечание"]
["1","2","3","4","5","6","7","8","9","10","11","12","13","14","15","16","17","18","19","20","21","22","23"]
[1,"Муниципальная программа \"Развитие образования\"",null,"902 0113 1310110490 244","№ 1","09.01.2020","Поставка бумаги для офисной техники",20000,{"$f":"H8-P8","v":0},"2353019514","ИП Котляров К.И.",null,"В течение 15 рабочих дней, со дня подписания сторонами контракта","2020-01-10","Не позднее 30 календарных дней с момента подписания акта приема-сдачи и документа на оплату",20000,"2020-01-10",null,null,null,null,null,"Пример"]
[1,"Муниципальная программа \"Развитие образования\"","нет","925 0000 0000000000 244","№ 6/22","2021-01-21","Дератизационные работы",21993.040000000001,{"$f":"IF(X9 = 1, H9 + SUM(S9:S10) - SUM(T9:T10) - SUM(P9:P10) - V9,0)","v":10996.52},"2353018870","ООО \"Дезинфекция\"","нет","по мере необходимости","2022-03-28","Не позднее 30 календарных дней с момента подписания акта приема-сдачи и документа на оплату",5498.26,"2022-03-28",null,null,null,null,null,null,1]
[null,null,null,null,null,null,null,null,null,null,null,null,null,"2022-06-27",null,5498.26,"2022-06-29",null,null,null,null,null,null,1]
[2,"Муниципальная программа \"Развитие образования\"","нет","925 0000 0000000000 244","1900-01-01","2022-01-21","Работы по сервисному обслуживанию УУТЭ",17500,{"$f":"IF(X11 = 2, H11 + SUM(S11:S14) - SUM(T11:T14) - SUM(P11:P14) - V11,0)","v":7500},"235301271520","ИП Дудкин","нет","согласно приложения 1","2022-01-31","Не позднее 30 календарных дней с момента подписания акта приема-сдачи и документа на оплату",2500,"2022-02-02",null,null,null,null,null,null,2]
[null,null,null,null,null,null,null,null,null,null,null,null,null,"2022-02-28",null,2500,"2022-03-02",null,null,null,null,null,null,2]
[null,null,null,null,null,null,null,null,null,null,null,null,null,"2022-03-28",null,2500,"2022-04-01",null,null,null,null,null,null,2]
[null,null,null,null,null,null,null,null,null,null,null,null,null,"2022-04-25",null,2500,"2022-04-29",null,null,null,null,null,null,2]
[3,"Муниципальная программа \"Развитие образования\"","нет","925 0000 0000000000 244","№ 39-С","2022-01-21","ТО установки системы пожарного мониторинга \"Стрелец-мониторинг\"",36000,{"$f":"IF(X15 = 8, H15 + SUM(S15:S20) - SUM(T15:T20) - SUM(P15:P20) - V15,0)","v":18000},"2353002302","ООО \"Сигнал\"","нет","согласно графика","2022-01-31","Не позднее 30 календарных дней с момента подписания акта приема-сдачи и документа на оплату",3000,"2022-02-17",null,null,null,null,null,null,8]
[null,null,null,null,null,null,null,null,null,null,null,null,null,"2022-02-28",null,3000,"2022-03-02",null,null,null,null,null,null,8]
[null,null,null,null,null,null,null,null,null,null,null,null,null,"2022-03-31",null,3000,"2022-04-01",null,null,null,null,null,null,8]
[null,null,null,null,null,null,null,null,null,null,null,null,null,"2022-04-30",null,3000,"2022-05-05",null,null,null,null,null,null,8]
[null,null,null,null,null,null,null,null,null,null,null,null,null,"2022-05-31",null,3000,"2022-06-01",null,null,null,null,null,null,8]
[null,null,null,null,null,null,null,null,null,null,null,null,null,"2022-06-30",null,3000,"2022-06-30",null,null,null,null,null,null,8]
[4,"Муниципальная программа \"Развитие образования\"","нет","925 0000 0000000000 244","№ 41","2022-02-02","товар",13965,{"$f":"IF(X21 = 9, H21 + SUM(S21:S21) - SUM(T21:T21) - SUM(P21:P21) - V21,0)","v":0},"235305769122","ИП Барма","нет","В течение 14 рабочих дней",null,"Не позднее 30 календарных дней с момента подписания акта приема-сдачи и документа на оплату",13965,"2022-02-07",null,null,null,null,null,null,9]
[5,"Муниципальная программа \"Развитие образования\"","нет","925 0000 0000000000 244",73,"2022-03-01","запчасти",5533,{"$f":"IF(X22 = 23, H22 + SUM(S22:S22) - SUM(T22:T22) - SUM(P22:P22) - V22,0)","v":0},"235305769122","ИП Барма","нет","В течение 14 рабочих дней",null,"Не позднее 30 календарных дней с момента подписания акта приема-сдачи и документа на оплату",5533,"2022-03-04",null,null,null,null,null,null,23]
[6,"Муниципальная программа \"Развитие образования\"","нет","925 0000 0000000000 244","3827/212-1","2022-03-02","подписка",412.32,{"$f":"IF(X23 = 24, H23 + SUM(S23:S23) - SUM(T23:T23) - SUM(P23:P23) - V23,0)","v":0},"235305769122","7724490000","нет",null,null,"Не позднее 30 календарных дней с момента подписания акта приема-сдачи и документа на оплату",412.32,"2022-03-09",null,null,null,null,null,null,24]
[7,"Муниципальная программа \"Развитие образования\"","нет","925 0000 0000000000 244",97,"2022-03-23","запчасти",18320,{"$f":"IF(X24 = 25, H24 + SUM(S24:S25) - SUM(T24:T25) - SUM(P24:P25) - V24,0)","v":0},"235305769122","ИП Барма","нет","В течение 14 рабочих дней",null,"Не позднее 30 календарных дней с момента подписания акта приема-сдачи и документа на оплату",7120,"2022-04-01",null,null,null,null,null,null,25]
[null,null,null,null,null,null,null,null,null,null,null,null,null,null,null,11200,"2022-04-01",null,null,null,null,null,null,25]
[8,"Муниципальная программа \"Развитие образования\"","нет","925 0000 0000000000 244","104-ЭО","2022-03-23","отчетность",6900,{"$f":"IF(X26 = 26, H26 + SUM(S26:S26) - SUM(T26:T26) - SUM(P26:P26) - V26,0)","v":0},"235306110100 ","ИП Казерова","нет",null,null,"Не позднее 30 календарных дней с момента подписания акта приема-сдачи и документа на оплату",6900,"2022-04-01",null,null,null,null,null,null,26]
[9,"Муниципальная программа \"Развитие образования\"","нет","925 0000 0000000000 244","334-ПУ","2022-03-23","консультационные услуги",6000,{"$f":"IF(X27 = 27, H27 + SUM(S27:S27) - SUM(T27:T27) - SUM(P27:P27) - V27,0)","v":0},"235306110100","ИП Казерова","нет",null,null,"Не позднее 30 календарных дней с момента подписания акта приема-сдачи и документа на оплату",6000,"2022-04-01",null,null,null,null,null,null,27]
[10,"Муниципальная программа \"Развитие образования\"","нет","925 0000 0000000000 244",24,"2022-03-01","1-4 классы услуга по приготовлению питания",33090,{"$f":"IF(X28 = 28, H28 + SUM(S28:S29) - SUM(T28:T29) - SUM(P28:P29) - V28,0)","v":310},"2353020735","ООО \"Тимашевское прт райпо\"","нет",null,"2022-03-18","Не позднее 30 календарных дней с момента подписания акта приема-сдачи и документа на оплату",22616,"2022-04-06",null,null,null,null,null,null,28]
[null,null,null,null,null,null,null,null,null,null,null,null,null,"2022-03-13",null,10164,"2022-04-11",null,null,null,null,null,null,28]
[11,"Муниципальная программа \"Развитие образования\"","нет","925 0000 0000000000 244",23,"2022-03-01","питание 1-4 классы",104234.13,{"$f":"IF(X30 = 29, H30 + SUM(S30:S33) - SUM(T30:T33) - SUM(P30:P33) - V30,0)","v":977.13000000000466},"2353020735","ООО \"Тимашевское прт райпо\"","нет",null,"2022-03-07","Не позднее 30 календарных дней с момента подписания акта приема-сдачи и документа на оплату",30095.58,"2022-04-06",null,null,null,null,null,null,29]
[null,null,null,null,null,null,null,null,null,null,null,null,null,"2022-03-07",null,1921.02,"2022-04-06",null,null,null,null,null,null,29]
[null,null,null,null,null,null,null,null,null,null,null,null,null,"2022-03-18",null,66965.929999999993,"2022-04-06",null,null,null,null,null,null,29]
[null,null,null,null,null,null,null,null,null,null,null,null,null,"2022-03-18",null,4274.47,"2022-04-06",null,null,null,null,null,null,29]
[12,"Муниципальная программа \"Развитие образования\"","нет","925 0000 00000000000 244",25,"2022-03-09","оказание услуг по организации питания обучающихся инвалидов ",8501.2800000000007,{"$f":"IF(X34 = 30, H34 + SUM(S34:S34) - SUM(T34:T34) - SUM(P34:P34) - V34,0)","v":7929.2800000000007},"2353020735","ООО \"Тимашевское прт райпо\"","нет",null,"2022-03-18","Не позднее 30 календарных дней с момента подписания акта приема-сдачи и документа на оплату",572,"2022-04-06",null,null,null,null,null,null,30]
[13,"Муниципальная программа \"Развитие образования\"","нет","925 0000 000000000 244","2022-03-11","2022-03-11","баннер",2635,{"$f":"IF(X35 = 31, H35 + SUM(S35:S35) - SUM(T35:T35) - SUM(P35:P35) - V35,0)","v":0},"235303800426","ИП Шашанков","нет",null,null,"Не позднее 30 календарных дней с момента подписания акта приема-сдачи и документа на оплату",2635,"2022-04-01",null,null,null,null,null,null,31]
[14,"Муниципальная программа \"Развитие образования\"","нет","925 0000 000000000 244",26,"2022-03-18","1-4 классы услуга по приготовлению питания обучающихся с овз",14303.52,{"$f":"IF(X36 = 32, H36 + SUM(S36:S39) - SUM(T36:T39) - SUM(P36:P39) - V36,0)","v":3347.5200000000004},"2353020735","ООО \"Тимашевское прт райпо\"","нет",null,"2022-03-18","Не позднее 30 календарных дней с момента подписания акта приема-сдачи и документа на оплату",2420,"2022-04-06",null,null,null,null,null,null,32]
[null,null,null,null,null,null,null,null,null,null,null,null,null,"2022-03-31",null,2926,"2022-04-19",null,null,null,null,null,null,32]
[null,null,null,null,null,null,null,null,null,null,null,null,null,"2022-04-29",null,3520,"2022-05-13",null,null,null,null,null,null,32]
[null,null,null,null,null,null,null,null,null,null,null,null,null,"2022-05-20",null,2090,"2022-05-30",null,null,null,null,null,null,32]
[15,"Муниципальная программа \"Развитие образования\"","нет","925 0000 000000000 244",30,"2022-03-18","оказание услуг по приготовлению питания обучающихся инвалидов ",1078,{"$f":"IF(X40 = 33, H40 + SUM(S40:S40) - SUM(T40:T40) - SUM(P40:P40) - V40,0)","v":748},"2353020735","ООО \"Тимашевское прт райпо\"","нет",null,"2022-03-18","Не позднее 30 календарных дней с момента подписания акта приема-сдачи и документа на оплату",330,"2022-04-13",null,null,null,null,null,null,33]
[16,"Муниципальная программа \"Развитие образования\"","нет","925 0000 000000000 244",31,"2022-03-28","оказание услуг по приготовлению питания обучающихся инвалидов ",1892,{"$f":"IF(X41 = 34, H41 + SUM(S41:S43) - SUM(T41:T43) - SUM(P41:P43) - V41,0)","v":968},"2353020735","ООО \"Тимашевское прт райпо\"","нет",null,"2022-03-31","Не позднее 30 календарных дней с момента подписания акта приема-сдачи и документа на оплату",374,"2022-04-19",null,null,null,null,null,null,34]
[null,null,null,null,null,null,null,null,null,null,null,null,null,"2022-04-29",null,308,"2022-05-13",null,null,null,null,null,null,34]
[null,null,null,null,null,null,null,null,null,null,null,null,null,"2022-05-20",null,242,"2022-05-30",null,null,null,null,null,null,34]
[17,"Муниципальная программа \"Развитие образования\"","нет","925 0000 000000000 244",32,"2022-03-28","оказание услуг по организации питания обучающихся инвалидов ",8174.3,{"$f":"IF(X44 = 35, H44 + SUM(S44:S46) - SUM(T44:T46) - SUM(P44:P46) - V44,0)","v":826.60000000000036},"2353020735","ООО \"Тимашевское прт райпо\"","нет",null,"2022-03-31","Не позднее 30 календарных дней с момента подписания акта приема-сдачи и документа на оплату",2213.3000000000002,"2022-04-19",null,null,null,null,null,null,35]
[null,null,null,null,null,null,null,null,null,null,null,null,null,"2022-04-29",null,3170.6,"2022-05-13",null,null,null,null,null,null,35]
[null,null,null,null,null,null,null,null,null,null,null,null,null,"2022-05-20",null,1963.8,"2022-05-30",null,null,null,null,null,null,35]
[18,"Муниципальная программа \"Развитие образования\"","нет","925 0000 000000000 244","49760012/22","2022-03-29","предоставление права использования и абонентское обслуживание Системы Контур Экстерн",3550,{"$f":"IF(X47 = 36, H47 + SUM(S47:S47) - SUM(T47:T47) - SUM(P47:P47) - V47,0)","v":0},"6663003127","АО \"СКБ Контур\"","нет",null,null,"Не позднее 30 календарных дней с момента подписания акта приема-сдачи и документа на оплату",3550,"2022-04-01",null,null,null,null,null,null,36]
[19,"Муниципальная программа \"Развитие образования\"","нет","925 0000 000000000 244",6,"2022-03-31","оказание охранных услуг",8112,{"$f":"IF(X48 = 39, H48 + SUM(S48:S48) - SUM(T48:T48) - SUM(P48:P48) - V48,0)","v":0},"2308080429","ООО \"Охранное предприятие \"Телохранитель-Секьюрити\"","нет",null,"2022-04-04","Не позднее 30 календарных дней с момента подписания акта приема-сдачи и документа на оплату",8112,"2022-05-17",null,null,null,null,null,null,39]
[20,"Муниципальная программа \"Развитие образования\"","нет","925 0000 000000000 244",33,"2022-04-01","1-4 классы услуга по организации питания обучающихся с овз",54479.1,{"$f":"IF(X49 = 40, H49 + SUM(S49:S52) - SUM(T49:T52) - SUM(P49:P52) - V49,0)","v":16177.199999999997},"2353020735","ООО \"Тимашевское прт райпо\"","нет",null,"2022-04-29","Не позднее 30 календарных дней с момента подписания акта приема-сдачи и документа на оплату",10720.04,"2022-05-13",null,null,null,null,null,null,40]
[null,null,null,null,null,null,null,null,null,null,null,null,null,"2022-04-29",null,13101.96,"2022-05-13",null,null,null,null,null,null,40]
[null,null,null,null,null,null,null,null,null,null,null,null,null,"2022-05-20",null,7963.86,"2022-05-30",null,null,null,null,null,null,40]
[null,null,null,null,null,null,null,null,null,null,null,null,null,"2022-05-20",null,6516.04,"2022-05-30",null,null,null,null,null,null,40]
[21,"Муниципальная программа \"Развитие образования\"","нет","925 0000 0000000000 244","АТОО-001468","2022-04-04","обслуживание в Удостоверяющем центре ООО \"АйТи Мониторинг\"",3000,{"$f":"IF(X53 = 41, H53 + SUM(S53:S53) - SUM(T53:T53) - SUM(P53:P53) - V53,0)","v":0},"2311187588","ООО \"АйТи Мониторинг\"","нет",null,null,"Не позднее 30 календарных дней с момента подписания акта приема-сдачи и документа на оплату",3000,"2022-04-13",null,null,null,null,null,null,41]
[22,"Муниципальная программа \"Развитие образования\"","нет","925 0000 0000000000 244","3898/212","2022-04-21","поставка периодических печатных изданий",9956.3799999999992,{"$f":"IF(X54 = 42, H54 + SUM(S54:S54) - SUM(T54:T54) - SUM(P54:P54) - V54,0)","v":0},"7724490000","АО \"Почта России\"","нет",null,null,"Не позднее 30 календарных дней с момента подписания акта приема-сдачи и документа на оплату",9956.3799999999992,"2022-04-27",null,null,null,null,null,null,42]
[23,"Муниципальная программа \"Развитие образования\"","нет","925 0000 000000000 244",32,"2022-04-25","бензокоса Штурм",8990,{"$f":"IF(X55 = 43, H55 + SUM(S55:S55) - SUM(T55:T55) - SUM(P55:P55) - V55,0)","v":0},"235300201840","ИП Рыжков","нет",null,"2022-04-25","Не позднее 30 календарных дней с момента подписания акта приема-сдачи и документа на оплату",8990,"2022-04-27",null,null,null,null,null,null,43]
[24,"Муниципальная программа \"Развитие образования\"","нет","925 0000 000000000 244","2022-04-29","2022-04-29","баннер",6039,{"$f":"IF(X56 = 44, H56 + SUM(S56:S56) - SUM(T56:T56) - SUM(P56:P56) - V56,0)","v":0},"235303800426","ИП Шашанков","нет",null,null,"Не позднее 30 календарных дней с момента подписания акта приема-сдачи и документа на оплату",6039,"2022-05-06",null,null,null,null,null,null,44]
[25,"Муниципальная программа \"Развитие образования\"","нет","925 0000 000000000 244","2022-03-15","1900-01-22","заправка картриджей и ремонт оргтехники",14850,{"$f":"IF(X57 = 45, H57 + SUM(S57:S57) - SUM(T57:T57) - SUM(P57:P57) - V57,0)","v":0},"235300809163","ИП Коваленко","нет",null,null,"Не позднее 30 календарных дней с момента подписания акта приема-сдачи и документа на оплату",14850,"2022-04-01",null,null,null,null,null,null,45]
[26,"Муниципальная программа \"Развитие образования\"","нет","925 0000 000000000 244","23-8554","2022-02-15","аттестаты",5172,{"$f":"IF(X58 = 46, H58 + SUM(S58:S58) - SUM(T58:T58) - SUM(P58:P58) - V58,0)","v":0},"7706526550","ООО \"Спецбланк Москва\"","нет",null,"2022-03-28","Не позднее 30 календарных дней с момента подписания акта приема-сдачи и документа на оплату",5172,"2022-04-14",null,null,null,null,null,null,46]
[27,"Муниципальная программа \"Развитие образования\"","нет","925 0000 000000000 244","2022-04-06","2022-01-20","оценка рыночной стоимости",7500,{"$f":"IF(X59 = 47, H59 + SUM(S59:S59) - SUM(T59:T59) - SUM(P59:P59) - V59,0)","v":0},"2335015365","СОЮЗ \"ТТПП\"","нет",null,null,"Не позднее 30 календарных дней с момента подписания акта приема-сдачи и документа на оплату",7500,"2022-04-19",null,null,null,null,null,null,47]
[28,"Муниципальная программа \"Развитие образования\"","нет","925 0000 000000000 244","1900-01-07","2022-05-12","запчасти",7625,{"$f":"IF(X60 = 48, H60 + SUM(S60:S60) - SUM(T60:T60) - SUM(P60:P60) - V60,0)","v":0},"235301943813","ИП Отиско","нет",null,null,"в течение 10 рабочих дней",7625,"2022-05-16",null,null,null,null,null,null,48]
[29,"Муниципальная программа \"Развитие образования\"","нет","925 0000 000000000 244","2022-05-25","2022-05-25","баннер",3605,{"$f":"IF(X61 = 49, H61 + SUM(S61:S61) - SUM(T61:T61) - SUM(P61:P61) - V61,0)","v":0},"235303800426","ИП Шашанков","нет",null,null,"в течение 10 рабочих дней",3605,"2022-05-25",null,null,null,null,null,null,49]
[30,"Муниципальная программа \"Развитие образования\"","нет","925 0000 000000000 244","СП-Т-81/22","2022-05-25","семинар",4000,{"$f":"IF(X62 = 50, H62 + SUM(S62:S62) - SUM(T62:T62) - SUM(P62:P62) - V62,0)","v":0},"2311163812","ООО \"АСМ-Партнер\"","нет",null,null,"в течение 10 рабочих дней",4000,"2022-05-27",null,null,null,null,null,null,50]
[31,"Муниципальная программа \"Развитие образования\"","нет","925 0000 000000000 244",8,"2022-05-30","краска",19895,{"$f":"IF(X63 = 51, H63 + SUM(S63:S63) - SUM(T63:T63) - SUM(P63:P63) - V63,0)","v":0},"235301943813","ИП Отиско","нет",null,null,"в течение 10 рабочих дней",19895,"2022-05-30",null,null,null,null,null,null,51]
[32,"Муниципальная программа \"Развитие образования\"","нет","925 0000 000000000 244",2031,"2022-06-10","утилизация",17640,{"$f":"IF(X64 = 52, H64 + SUM(S64:S64) - SUM(T64:T64) - SUM(P64:P64) - V64,0)","v":0},"6162076156","ООО \"ВторИнвестЮг\"","нет",null,null,"в течение 10 рабочих дней",17640,"2022-06-22",null,null,null,null,null,null,52]
[33,"Муниципальная программа \"Развитие образования\"","нет","925 0000 000000000 244",44713,"2022-06-01","баннер",2827,{"$f":"IF(X65 = 53, H65 + SUM(S65:S65) - SUM(T65:T65) - SUM(P65:P65) - V65,0)","v":0},"235303800426","ИП Шашанков","нет",null,null,"в течение 10 рабочих дней",2827,"2022-06-15",null,null,null,null,null,null,53]
[34,"Муниципальная программа \"Развитие образования\"","нет","925 0000 000000000 244",39,"2022-06-14","хозтовары",5340,{"$f":"IF(X66 = 54, H66 + SUM(S66:S67) - SUM(T66:T67) - SUM(P66:P67) - V66,0)","v":0},"235301943813","ИП Отиско","нет",null,null,"в течение 10 рабочих дней",3850,"2022-06-15",null,null,null,null,null,null,54]
[null,null,null,null,null,null,null,null,null,null,null,null,null,null,null,1490,"2022-06-15",null,null,null,null,null,null,54]
[35,"Муниципальная программа \"Развитие образования\"","нет","925 0000 000000000 244",42,"2022-06-20","краска",28940,{"$f":"IF(X68 = 55, H68 + SUM(S68:S69) - SUM(T68:T69) - SUM(P68:P69) - V68,0)","v":0},"235301943813","ИП Отиско","нет",null,null,"в течение 10 рабочих дней",28440,"2022-06-22",null,null,null,null,null,null,55]
[null,null,null,null,null,null,null,null,null,null,null,null,null,null,null,500,"2022-06-22",null,null,null,null,null,null,55]
[36,"Муниципальная программа \"Развитие образования\"","нет","925 0000 000000000 244","020-ПН-22","2022-06-20","испытание электроустановок",19500,{"$f":"IF(X70 = 56, H70 + SUM(S70:S70) - SUM(T70:T70) - SUM(P70:P70) - V70,0)","v":0},"235302001163","ип ромчук","нет",null,null,"в течение 10 рабочих дней",19500,"2022-06-22",null,null,null,null,null,null,56]
[37,"Муниципальная программа \"Развитие образования\"","нет","925 0000 000000000 244",42,"2022-06-27","хозтовары",15934,{"$f":"IF(X71 = 57, H71 + SUM(S71:S71) - SUM(T71:T71) - SUM(P71:P71) - V71,0)","v":0},"235305536400","ип быстров","нет",null,null,"в течение 10 рабочих дней",15934,"2022-06-28",null,null,null,null,null,null,57]
[38,"Муниципальная программа \"Развитие образования\"","нет","925 0000 000000000 244",44,"2022-06-27","хозтовары",8596,{"$f":"IF(X72 = 58, H72 + SUM(S72:S72) - SUM(T72:T72) - SUM(P72:P72) - V72,0)","v":0},"235305536400","ип быстров","нет",null,null,"в течение 10 рабочих дней",8596,"2022-06-28",null,null,null,null,null,null,58]
[39,"Муниципальная программа \"Развитие образования\"","нет","925 0000 000000000 244",41,"2022-06-27","хозтовары",56860,{"$f":"IF(X73 = 59, H73 + SUM(S73:S74) - SUM(T73:T74) - SUM(P73:P74) - V73,0)","v":0},"235305536400","ип быстров","нет",null,null,"в течение 10 рабочих дней",9430,"2022-06-28",null,null,null,null,null,null,59]
[null,null,null,null,null,null,null,null,null,null,null,null,null,null,null,47430,"2022-06-28",null,null,null,null,null,null,59]
[40,"Муниципальная программа \"Развитие образования\"","нет","925 0000 000000000 244",36,"2022-06-17","питание лагерь",29232,{"$f":"IF(X75 = 60, H75 + SUM(S75:S75) - SUM(T75:T75) - SUM(P75:P75) - V75,0)","v":0},"23530020735","ООО \"Тимашевское прт райпо\"","нет",null,null,"в течение 10 рабочих дней",29232,"2022-07-14",null,null,null,null,null,null,60]
[41,"Муниципальная программа \"Развитие образования\"","нет","925 0000 000000000 244",35,"2022-06-17","питание лагерь",77940,{"$f":"IF(X76 = 61, H76 + SUM(S76:S76) - SUM(T76:T76) - SUM(P76:P76) - V76,0)","v":0},"23530020735","ООО \"Тимашевское прт райпо\"","нет",null,null,"в течение 10 рабочих дней",77940,"2022-07-14",null,null,null,null,null,null,61]
[42,"Муниципальная программа \"Развитие образования\"","нет","925 0000 000000000 244",6,"2022-07-09","экскурсионные услуги",12500,{"$f":"IF(X77 = 62, H77 + SUM(S77:S77) - SUM(T77:T77) - SUM(P77:P77) - V77,0)","v":0},"2353016418","Приход храма","нет",null,null,"в течение 7 рабочих дней",12500,"2022-07-14",null,null,null,null,null,null,62]
[43,"Муниципальная программа \"Развитие образования\"","нет","925 0000 000000000 244",50,"2022-06-30","выполнение работ ",17675,{"$f":"IF(X78 = 63, H78 + SUM(S78:S78) - SUM(T78:T78) - SUM(P78:P78) - V78,0)","v":0},"6168087210","ООО \"Главпожснаб\"","нет",null,null,"в течение 7 рабочих дней",17675,"2022-07-11",null,null,null,null,null,null,63]
[44,"Муниципальная программа \"Развитие образования\"","нет","925 0000 000000000 244","09-ОТ","2022-07-04","обучение",8500,{"$f":"IF(X79 = 64, H79 + SUM(S79:S79) - SUM(T79:T79) - SUM(P79:P79) - V79,0)","v":0},"2364010270","ООО \"ЦДО \"ПРОФТЕХОБУЧЕНИЕ\"","нет",null,null,"в течение 7 рабочих дней",8500,"2022-07-19",null,null,null,null,null,null,64]
[45,"Муниципальная программа \"Развитие образования\"","нет","925 0000 000000000 244",379,"2022-07-11","двери",79500,{"$f":"IF(X80 = 65, H80 + SUM(S80:S80) - SUM(T80:T80) - SUM(P80:P80) - V80,0)","v":0},"252801469324","ИП Терземан","нет",null,null,"в течение 7 рабочих дней",79500,"2022-07-14",null,null,null,null,null,null,65]
[46,"Муниципальная программа \"Развитие образования\"","нет","925 0000 000000000 244",52,"2022-07-14","стенды",75000,{"$f":"IF(X81 = 66, H81 + SUM(S81:S81) - SUM(T81:T81) - SUM(P81:P81) - V81,0)","v":0},"231111684948","ИП Бессмолкин","нет",null,null,"в течение 7 рабочих дней",75000,null,null,null,null,null,null,null,66]
[47,"Муниципальная программа \"Развитие образования\"","нет","925 0000 000000000 244",53,"2022-07-14","жалюзи",57860,{"$f":"IF(X82 = 67, H82 + SUM(S82:S82) - SUM(T82:T82) - SUM(P82:P82) - V82,0)","v":57860},"231111684948","ИП Бессмолкин","нет",null,null,"в течение 7 рабочих дней",null,null,null,null,null,null,null,null,67]
[48,"Муниципальная программа \"Развитие образования\"","нет","925 0000 000000000 244",2042,"2022-07-27","Услуги по утилизации отходов",21560,{"$f":"IF(X83 = 68, H83 + SUM(S83:S83) - SUM(T83:T83) - SUM(P83:P83) - V83,0)","v":0},"6162076156","ООО \"ВторИнвестЮг\"","нет",null,null,"в течение 7 рабочих дней",21560,"2022-07-29",null,null,null,null,null,null,68]
[null,null,null,null,null,null,null,null,null,null,null,null,null,null,null,null,null,null,null,null,null,null,null,69]

{"sheet":"Ед. поставщик п.5 ч.1","index":2,"n_rows":124,"n_cols":24,"rows_kept":124,"cut":false,"hidden":false,"merged":[[11,12,17,12],[107,0,109,0],[107,14,109,14],[107,20,109,20],[107,1,109,1],[107,21,109,21],[107,2,109,2],[107,22,109,22],[107,3,109,3],[107,4,109,4],[107,5,109,5],[107,6,109,6],[107,7,109,7],[107,8,109,8],[107,9,109,9],[107,10,109,10],[107,11,109,11],[107,12,109,12],[11,3,17,3],[11,4,17,4],[11,5,17,5],[11,6,17,6],[11,7,17,7],[11,8,17,8],[11,9,17,9],[11,10,17,10],[11,11,17,11],[89,0,93,0],[89,14,93,14],[89,20,93,20],[89,1,93,1],[89,21,93,21],[89,2,93,2],[89,22,93,22],[89,3,93,3],[89,4,93,4],[89,5,93,5],[89,6,93,6],[89,7,93,7],[89,8,93,8],[89,9,93,9],[89,10,93,10],[89,11,93,11],[89,12,93,12],[83,0,88,0],[83,14,88,14],[83,20,88,20],[83,1,88,1],[83,21,88,21],[83,2,88,2],[83,22,88,22],[83,3,88,3],[83,4,88,4],[83,5,88,5],[83,6,88,6],[83,7,88,7],[83,8,88,8],[83,9,88,9],[83,10,88,10],[83,11,88,11],[83,12,88,12],[41,0,47,0],[41,14,47,14],[41,20,47,20],[41,1,47,1],[41,21,47,21],[41,2,47,2],[41,22,47,22],[41,3,47,3],[41,4,47,4],[41,5,47,5],[41,6,47,6],[41,7,47,7],[41,8,47,8],[41,9,47,9],[41,10,47,10],[41,11,47,11],[41,12,47,12],[18,0,23,0],[18,14,23,14],[18,20,23,20],[18,1,23,1],[18,21,23,21],[18,2,23,2],[18,22,23,22],[18,3,23,3],[18,4,23,4],[18,5,23,5],[18,6,23,6],[18,7,23,7],[18,8,23,8],[18,9,23,9],[18,10,23,10],[18,11,23,11],[18,12,23,12],[104,0,106,0],[104,14,106,14],[104,20,106,20],[104,1,106,1],[104,21,106,21],[104,2,106,2],[104,22,106,22],[104,3,106,3],[104,4,106,4],[104,5,106,5],[104,6,106,6],[104,7,106,7],[104,8,106,8],[104,9,106,9],[104,10,106,10],[104,11,106,11],[104,12,106,12],[24,0,40,0],[24,14,40,14],[24,20,40,20],[24,1,40,1],[24,21,40,21],[24,2,40,2],[24,22,40,22],[97,12,102,12],[97,3,102,3],[97,4,102,4],[97,5,102,5],[97,6,102,6],[97,7,102,7],[97,8,102,8],[97,9,102,9],[97,10,102,10],[97,11,102,11],[73,0,82,0],[73,1,82,1],[97,0,102,0],[97,1,102,1],[97,2,102,2],[48,0,57,0],[48,1,57,1],[48,2,57,2],[24,3,40,3],[24,4,40,4],[24,5,40,5],[24,6,40,6],[24,7,40,7],[24,8,40,8],[24,9,40,9],[24,10,40,10],[24,11,40,11],[24,12,40,12],[48,9,57,9],[48,10,57,10],[48,11,57,11],[48,12,57,12],[48,8,57,8],[97,22,102,22],[97,14,102,14],[97,20,102,20],[97,21,102,21],[66,22,72,22],[58,20,59,20],[116,0,117,0],[116,14,117,14],[94,0,96,0],[94,14,96,14],[94,12,96,12],[94,3,96,3],[94,4,96,4],[94,5,96,5],[94,6,96,6],[94,7,96,7],[94,8,96,8],[94,9,96,9],[94,10,96,10],[94,11,96,11],[116,20,117,20],[116,1,117,1],[116,21,117,21],[116,2,117,2],[116,22,117,22],[116,3,117,3],[116,4,117,4],[116,5,117,5],[116,6,117,6],[116,7,117,7],[116,8,117,8],[116,9,117,9],[116,10,117,10],[116,11,117,11],[116,12,117,12],[94,22,96,22],[60,22,65,22],[60,12,65,12],[60,14,65,14],[60,20,65,20],[94,20,96,20],[73,22,82,22],[73,10,82,10],[73,11,82,11],[73,12,82,12],[73,14,82,14],[73,20,82,20],[73,21,82,21],[60,3,65,3],[60,4,65,4],[60,5,65,5],[60,6,65,6],[60,7,65,7],[60,8,65,8],[60,9,65,9],[60,10,65,10],[60,11,65,11],[58,1,59,1],[58,21,59,21],[58,2,59,2],[58,22,59,22],[58,3,59,3],[58,4,59,4],[58,5,59,5],[58,6,59,6],[58,7,59,7],[58,8,59,8],[58,9,59,9],[58,10,59,10],[58,11,59,11],[58,12,59,12],[8,22,10,22],[8,3,10,3],[8,4,10,4],[8,5,10,5],[8,6,10,6],[8,7,10,7],[8,8,10,8],[8,9,10,9],[8,10,10,10],[8,11,10,11],[8,12,10,12],[1,18,1,20],[1,5,1,6],[1,13,1,14],[8,0,10,0],[8,14,10,14],[8,20,10,20],[8,1,10,1],[8,21,10,21],[8,2,10,2],[94,1,96,1],[94,21,96,21],[94,2,96,2],[66,14,72,14],[66,20,72,20],[66,21,72,21],[66,3,72,3],[66,4,72,4],[66,5,72,5],[66,6,72,6],[66,7,72,7],[66,8,72,8],[66,9,72,9],[66,10,72,10],[66,11,72,11],[73,2,82,2],[73,3,82,3],[73,4,82,4],[73,5,82,5],[73,6,82,6],[73,7,82,7],[73,8,82,8],[73,9,82,9],[66,0,72,0],[66,1,72,1],[66,2,72,2],[66,12,72,12],[60,1,65,1],[60,21,65,21],[60,2,65,2],[60,0,65,0],[48,14,57,14],[48,20,57,20],[48,21,57,21],[48,22,57,22],[48,3,57,3],[48,4,57,4],[48,5,57,5],[48,6,57,6],[48,7,57,7],[58,0,59,0],[58,14,59,14],[11,0,17,0],[11,14,17,14],[11,20,17,20],[11,1,17,1],[11,21,17,21],[11,2,17,2],[11,22,17,22]]}
[]
[null,null,null,null,null,"Сумма заключенных контрактов",null,{"$f":"SUM(H9:H9999)","v":3263245.2600000002},null,null,null,null,null,"Сумма средств выплаченных по контрактам",null,{"$f":"SUM(P9:P9999)","v":1985242.0400000003},null,null,"Общая сумма расторжений по контрактам/договорам",null,null,{"$f":"SUM(V9:V9999)","v":252038}]
[]
[]
[]
["№ п/п","Наименование муниципальной программы, национального или регионального проекта","Контракт заключен в электронном виде посредством                             АИС \"Портал поставщиков\"   (Да/Нет)","Код бюджетной классификации","№ договора/контракта","Дата заключения договора/контракта","Предмет договора/контракта","Цена договора/контракта","Остаток по контракту","ИНН поставщика (подрядчика, исполнителя) ","Поставщик (подрядчик, исполнитель)","СМП и СОНО                       (Да/Нет)","Сроки поставки товара (оказания услуги, выполнения работы), согласно контракта; Предоставление документов на оплату Закзчику","Фактическая дата поставки товара (оказания услуги, выполнения работы) и (или) предоставление документов на оплату и подписание документов о приемке","Сроки оплаты согласно договора/контракта","Сумма согласно документа об исполнении контракта заказчиком","Фактическая дата оплаты","Изменение контракта (№, дата)","Изменение контракта (увеличение цены контракта в рублях)","Изменение контракта (уменьшение цены контракта в рублях)","Расторжение контракта (№, дата)","Сумма расторжения","Примечание"]
["1","2","3","4","5","6","7","8","9","10","11","12","13","14","15","16","17","18","19","20","21","22","23"]
["1","Муниципальная программа \"Развитие образования\"",null,"902 0113 1310110490 244","№ 1","2020-01-09","Поставка бумаги для офисной техники",20000,0,2353019514,"ИП Котляров К.И.",null,"В течение 15 рабочих дней, со дня подписания сторонами контракта","2020-01-10","Не позднее 30 календарных дней с момента подписания Заказчиком и Подрядчиком акта приема-сдачи и предоставленного Подрядчиком документа на оплату",20000,"2020-01-10",null,null,null,null,null,"Пример"]
[1,"Муниципальная программа \"Развитие образования\"","нет","925 0000 0000000000 244 ","11","2021-12-30","Оказание охранных услуг",172800,{"$f":"IF(X9 = 1, H9 + SUM(S9:S11) - SUM(T9:T11) - SUM(P9:P11) - V9,0)","v":0},2304067057,"ООО ЧОО \"Легион\"","нет","круглосуточно","2021-01-31","Не позднее 30 календарных дней с момента подписания Заказчиком и Подрядчиком акта приема-сдачи и предоставленного Подрядчиком документа на оплату",59520,"2022-02-18",null,null,null,null,null,null,1]
[null,null,null,null,null,null,null,null,null,null,null,null,null,"2022-02-28",null,53760,"2022-03-10",null,null,null,null,null,null,1]
[null,null,null,null,null,null,null,null,null,null,null,null,null,"2022-03-31",null,59520,"2022-04-22",null,null,null,null,null,null,1]
[2,"Муниципальная программа \"Развитие образования\"","нет","925 0000 0000000000 244","34000752","2021-12-30","Оказание охранных услуг (ктс)",27288.84,{"$f":"IF(X12 = 2, H12 + SUM(S12:S18) - SUM(T12:T18) - SUM(P12:P18) - V12,0)","v":11370.35},2310163739,"филиал ФГКУ \"УВО по Тимашевскому району\"","нет","круглосуточно","2022-01-31","Не позднее 30 календарных дней с момента подписания Заказчиком и Подрядчиком акта приема-сдачи и предоставленного Подрядчиком документа на оплату",2274.0700000000002,"2022-02-10",null,null,null,null,null,null,2]
[null,null,null,null,null,null,null,null,null,null,null,null,null,"2022-02-28",null,2274.0700000000002,"2022-03-03",null,null,null,null,null,null,2]
[null,null,null,null,null,null,null,null,null,null,null,null,null,"2022-03-31",null,2274.0700000000002,"2022-04-01",null,null,null,null,null,null,2]
[null,null,null,null,null,null,null,null,null,null,null,null,null,"2022-04-30",null,2274.0700000000002,"2022-04-29",null,null,null,null,null,null,2]
[null,null,null,null,null,null,null,null,null,null,null,null,null,"2022-05-31",null,2274.0700000000002,"2022-06-01",null,null,null,null,null,null,2]
[null,null,null,null,null,null,null,null,null,null,null,null,null,"2022-06-30",null,2274.0700000000002,"2022-06-30",null,null,null,null,null,null,2]
[null,null,null,null,null,null,null,null,null,null,null,null,null,"2022-07-31",null,2274.0700000000002,"2022-07-29",null,null,null,null,null,null,2]
[3,"Муниципальная программа \"Развитие образования\"","нет","925 0000 0000000000 244","№ 67","2020-12-31","Оказание услуг по обращению с твердыми коммунальными отходами",41067,{"$f":"IF(X19 = 3, H19 + SUM(S19:S24) - SUM(T19:T24) - SUM(P19:P24) - V19,0)","v":20935.980000000003},2308131994,"АО \"Мусороуборочная компания\"","нет","по заявке Потребителя","2022-01-31","Не позднее 10 календарных дней с момента подписания Заказчиком и Подрядчиком акта приема-сдачи и предоставленного Подрядчиком документа на оплату",3355.17,"2022-02-24",null,null,null,null,null,null,3]
[null,null,null,null,null,null,null,null,null,null,null,null,null,"2022-02-28",null,3355.17,"2022-03-28",null,null,null,null,null,null,3]
[null,null,null,null,null,null,null,null,null,null,null,null,null,"2022-03-31",null,3355.17,"2022-04-29",null,null,null,null,null,null,3]
[null,null,null,null,null,null,null,null,null,null,null,null,null,"2022-04-30",null,3355.17,"2022-05-05",null,null,null,null,null,null,3]
[null,null,null,null,null,null,null,null,null,null,null,null,null,"2022-05-31",null,3355.17,"2022-06-07",null,null,null,null,null,null,3]
[null,null,null,null,null,null,null,null,null,null,null,null,null,"2022-06-30",null,3355.17,"2022-07-11",null,null,null,null,null,null,3]
[4,"Муниципальная программа \"Развитие образования\"","нет","925 0000 0000000000 244","№ 23070500203","2021-12-30","Энергоснабжение",362862.05,{"$f":"IF(X25 = 4, H25 + SUM(S25:S41) - SUM(T25:T41) - SUM(P25:P41) - V25,0)","v":113975.78},2308119595,"ПАО \"ТНС энерго Кубань\"","нет","круглосуточно","2022-01-01","30 % - до 10 числа, 40 % - до 25 числа",10943.05,"2022-01-18",null,null,null,null,null,null,4]
[null,null,null,null,null,null,null,null,null,null,null,null,null,"2022-01-01",null,21507.61,"2022-01-18",null,null,null,null,null,null,4]
[null,null,null,null,null,null,null,null,null,null,null,null,null,"2022-02-01",null,16130.71,"2022-02-02",null,null,null,null,null,null,4]
[null,null,null,null,null,null,null,null,null,null,null,null,null,"2022-01-31",null,8462.4500000000007,"2022-02-17",null,null,null,null,null,null,4]
[null,null,null,null,null,null,null,null,null,null,null,null,null,"2022-02-01",null,18223.32,"2022-02-17",null,null,null,null,null,null,4]
[null,null,null,null,null,null,null,null,null,null,null,null,null,"2022-03-01",null,13667.5,"2022-03-02",null,null,null,null,null,null,4]
[null,null,null,null,null,null,null,null,null,null,null,null,null,"2022-02-28",null,12077.63,"2022-03-16",null,null,null,null,null,null,4]
[null,null,null,null,null,null,null,null,null,null,null,null,null,"2022-03-01",null,21631.94,"2022-03-16",null,null,null,null,null,null,4]
[null,null,null,null,null,null,null,null,null,null,null,null,null,"2022-04-01",null,16223.96,"2022-04-01",null,null,null,null,null,null,4]
[null,null,null,null,null,null,null,null,null,null,null,null,null,"2022-04-01",null,14940.6,"2022-04-14",null,null,null,null,null,null,4]
[null,null,null,null,null,null,null,null,null,null,null,null,null,"2022-05-01",null,11205.44,"2022-05-05",null,null,null,null,null,null,4]
[null,null,null,null,null,null,null,null,null,null,null,null,null,"2022-04-30",null,13261.18,"2022-05-17",null,null,null,null,null,null,4]
[null,null,null,null,null,null,null,null,null,null,null,null,null,"2022-05-01",null,20569.63,"2022-05-17",null,null,null,null,null,null,4]
[null,null,null,null,null,null,null,null,null,null,null,null,null,"2022-06-01",null,15427.22,"2022-06-01",null,null,null,null,null,null,4]
[null,null,null,null,null,null,null,null,null,null,null,null,null,"2022-06-01",null,14532.25,"2022-06-16",null,null,null,null,null,null,4]
[null,null,null,null,null,null,null,null,null,null,null,null,null,"2022-07-01",null,10899.19,"2022-07-04",null,null,null,null,null,null,4]
[null,null,null,null,null,null,null,null,null,null,null,null,null,"2022-07-01",null,9182.59,"2022-07-20",null,null,null,null,null,null,4]
[5,"Муниципальная программа \"Развитие образования\"","нет","925 0000 0000000000 244","№ 1","2021-12-30","Водоснабжение",23926.639999999999,{"$f":"IF(X42 = 5, H42 + SUM(S42:S48) - SUM(T42:T48) - SUM(P42:P48) - V42,0)","v":9091.26},2353246210,"ООО \"Коммунальник\"","нет","круглосуточно","2021-01-31","до 25 числа",1789.56,"2022-01-27",null,null,null,null,null,null,5]
[null,null,null,null,null,null,null,null,null,null,null,null,null,"2022-02-15",null,1908.87,"2022-02-24",null,null,null,null,null,null,5]
[null,null,null,null,null,null,null,null,null,null,null,null,null,"2022-03-16",null,1908.87,"2022-03-28",null,null,null,null,null,null,5]
[null,null,null,null,null,null,null,null,null,null,null,null,null,"2022-04-15",null,5567.52,"2022-04-29",null,null,null,null,null,null,5]
[null,null,null,null,null,null,null,null,null,null,null,null,null,"2022-05-17",null,1550.95,"2022-06-02",null,null,null,null,null,null,5]
[null,null,null,null,null,null,null,null,null,null,null,null,null,"2022-06-17",null,1033.97,"2022-06-30",null,null,null,null,null,null,5]
[null,null,null,null,null,null,null,null,null,null,null,null,null,"2022-07-21",null,1075.6400000000001,"2022-07-29",null,null,null,null,null,null,5]
[6,"Муниципальная программа \"Развитие образования\"","нет","925 0000 0000000000 244","15","2022-01-21","Услуги по организации горячего питания обучающихся по образовательным программам начального общего образования",278918.64,{"$f":"IF(X49 = 6, H49 + SUM(S49:S58) - SUM(T49:T58) - SUM(P49:P58) - V49,0)","v":36299.339999999997},2353020735,"ООО \"Тимашевское ПРТ Райпо\"","нет","с 10.01.2022 по 28.02.2022","2022-02-04","Не позднее 30 календарных дней с момента подписания Заказчиком и Подрядчиком акта приема-сдачи и предоставленного Подрядчиком документа на оплату",1550.95,"2022-02-24",null,null,null,null,null,null,6]
[null,null,null,null,null,null,null,null,null,null,null,null,null,"2022-01-31",null,36218.93,"2022-02-24",null,null,null,null,null,null,6]
[null,null,null,null,null,null,null,null,null,null,null,null,null,"2022-01-31",null,2311.87,"2022-02-24",null,null,null,null,null,null,6]
[null,null,null,null,null,null,null,null,null,null,null,null,null,"2022-01-21",null,70874.45,"2022-02-24",null,null,null,null,null,null,6]
[null,null,null,null,null,null,null,null,null,null,null,null,null,"2022-01-21",null,4523.95,"2022-02-24",null,null,null,null,null,null,6]
[null,null,null,null,null,null,null,null,null,null,null,null,null,"2022-02-18",null,36479.5,"2022-03-31",null,null,null,null,null,null,6]
[null,null,null,null,null,null,null,null,null,null,null,null,null,"2022-02-18",null,2328.5,"2022-03-31",null,null,null,null,null,null,6]
[null,null,null,null,null,null,null,null,null,null,null,null,null,"2022-02-28",null,60191.17,"2022-03-15",null,null,null,null,null,null,6]
[null,null,null,null,null,null,null,null,null,null,null,null,null,"2022-02-28",null,3842.03,"2022-03-15",null,null,null,null,null,null,6]
[null,null,null,null,null,null,null,null,null,null,null,null,null,"2022-02-04",null,24297.95,"2022-02-24",null,null,null,null,null,null,6]
[7,"Муниципальная программа \"Развитие образования\"","нет","925 0000 0000000000 244","№ ДГ-22/30","2021-12-30","Услуги по техническому сопровождению системы мониторинга транспортных средств",7200,{"$f":"IF(X59 = 7, H59 + SUM(S59:S60) - SUM(T59:T60) - SUM(P59:P60) - V59,0)","v":3600},2369000660,"ООО \"КАНкорт\"",null,"круглосуточно с 01.01.2021 по 31.12.2021","2021-03-31","Не позднее 30 календарных дней с момента подписания Заказчиком и Подрядчиком акта приема-сдачи и предоставленного Подрядчиком документа на оплату",1800,"2022-04-06",null,null,null,null,null,null,7]
[null,null,null,null,null,null,null,null,null,null,null,null,null,"2022-06-30",null,1800,"2022-07-08",null,null,null,null,null,null,7]
[8,"Муниципальная программа \"Развитие образования\"","нет","925 0000 0000000000 244 ","16","2022-01-21","Услуги по организации питания учащихся",88545.600000000006,{"$f":"IF(X61 = 8, H61 + SUM(S61:S66) - SUM(T61:T66) - SUM(P61:P66) - V61,0)","v":11523.600000000006},2353020735,"ООО \"Тимашевское ПРТ Райпо\"",null,"с 10.01.2022 по 28.02.2022","2022-01-31","Не позднее 30 календарных дней с момента подписания Заказчиком и Подрядчиком акта приема-сдачи и предоставленного Подрядчиком документа на оплату",12232,"2022-02-17",null,null,null,null,null,null,8]
[null,null,null,null,null,null,null,null,null,null,null,null,null,"2022-01-21",null,23936,"2022-02-17",null,null,null,null,null,null,8]
[null,null,null,null,null,null,null,null,null,null,null,null,null,"2022-02-04",null,8206,"2022-02-22",null,null,null,null,null,null,8]
[null,null,null,null,null,null,null,null,null,null,null,null,null,"2022-02-18",null,20328,"2022-03-04",null,null,null,null,null,null,8]
[null,null,null,null,null,null,null,null,null,null,null,null,null,"2022-02-28",null,12320,"2022-03-15",null,null,null,null,null,null,8]
[null,null,null,null,null,null,null,null,null,null,null,null,null,null,null,null,null,null,null,null,null,null,null,8]
[9,"Муниципальная программа \"Развитие образования\"","нет","925 0000 00000000000 244","17","2021-01-21","Услуги по организации горячего питания ОВЗ",67274.7,{"$f":"IF(X67 = 9, H67 + SUM(S67:S73) - SUM(T67:T73) - SUM(P67:P73) - V67,0)","v":8231.5},2353020735,"ООО \"Тимашевское ПРТ Райпо\"",null,"с 10.01.2022 по 31.03.2022","2022-01-31","Не позднее 30 календарных дней с момента подписания Заказчиком и Подрядчиком акта приема-сдачи и предоставленного Подрядчиком документа на оплату",9704.86,"2022-03-05",null,null,null,null,null,null,9]
[null,null,null,null,null,null,null,null,null,null,null,null,null,"2022-01-31",null,7940.54,"2022-03-05",null,null,null,null,null,null,9]
[null,null,null,null,null,null,null,null,null,null,null,null,null,"2022-02-28",null,11349.73,"2022-03-15",null,null,null,null,null,null,9]
[null,null,null,null,null,null,null,null,null,null,null,null,null,"2022-02-28",null,9286.3700000000008,"2022-03-15",null,null,null,null,null,null,9]
[null,null,null,null,null,null,null,null,null,null,null,null,null,"2022-03-31",null,9342.89,"2022-04-19",null,null,null,null,null,null,9]
[null,null,null,null,null,null,null,null,null,null,null,null,null,"2022-03-31",null,11418.81,"2022-04-19",null,null,null,null,null,null,9]
[null,null,null,null,null,null,null,null,null,null,null,null,null,null,null,null,null,null,null,null,null,null,null,9]
[10,"Муниципальная программа \"Развитие образования\"","нет","925 0000 0000000000 244","18","2022-01-21","Организация горячего питания обучающихся 6,10",100558.08,{"$f":"IF(X74 = 10, H74 + SUM(S74:S83) - SUM(T74:T83) - SUM(P74:P83) - V74,0)","v":21084.080000000002},2353020735,"ООО \"Тимашевское ПРТ Райпо\"","нет","с 10.01.2022 по 25.05.2022","2022-01-31","Не позднее 30 календарных дней с момента подписания Заказчиком и Подрядчиком акта приема-сдачи и предоставленного Подрядчиком документа на оплату",9372,"2022-02-22",null,null,null,null,null,null,10]
[null,null,null,null,null,null,null,null,null,null,null,null,null,"2022-01-31",null,6590,"2022-02-22",null,null,null,null,null,null,10]
[null,null,null,null,null,null,null,null,null,null,null,null,null,"2022-02-28",null,11952,"2022-03-15",null,null,null,null,null,null,10]
[null,null,null,null,null,null,null,null,null,null,null,null,null,"2022-02-28",null,5370,"2022-03-15",null,null,null,null,null,null,10]
[null,null,null,null,null,null,null,null,null,null,null,null,null,"2022-03-31",null,11250,"2022-04-13",null,null,null,null,null,null,10]
[null,null,null,null,null,null,null,null,null,null,null,null,null,"2022-03-31",null,5430,"2022-04-13",null,null,null,null,null,null,10]
[null,null,null,null,null,null,null,null,null,null,null,null,null,"2022-04-29",null,13440,"2022-05-16",null,null,null,null,null,null,10]
[null,null,null,null,null,null,null,null,null,null,null,null,null,"2022-04-29",null,6140,"2022-05-16",null,null,null,null,null,null,10]
[null,null,null,null,null,null,null,null,null,null,null,null,null,"2022-05-20",null,6960,"2022-06-01",null,null,null,null,null,null,10]
[null,null,null,null,null,null,null,null,null,null,null,null,null,"2022-05-20",null,2970,"2022-06-01",null,null,null,null,null,null,10]
[11,"Муниципальная программа \"Развитие образования\"","нет","925 0000 0000000000 244","№ 166","2021-12-30","Оказание услуг электросвязи юридическому лицу",13000,{"$f":"IF(X84 = 11, H84 + SUM(S84:S89) - SUM(T84:T89) - SUM(P84:P89) - V84,0)","v":6710.1900000000005},7707049388,"ПАО \"Ростелеком\"","нет","с 01.01.2022 по 31.12.2022","2022-01-31","Не позднее 30 календарных дней с момента подписания Заказчиком и Подрядчиком акта приема-сдачи и предоставленного Подрядчиком документа на оплату",1307.74,"2022-02-10",null,null,null,null,null,null,11]
[null,null,null,null,null,null,null,null,null,null,null,null,null,"2022-02-28",null,986.63,"2022-03-16",null,null,null,null,null,null,11]
[null,null,null,null,null,null,null,null,null,null,null,null,null,"2022-03-31",null,1059.7,"2022-04-06",null,null,null,null,null,null,11]
[null,null,null,null,null,null,null,null,null,null,null,null,null,"2022-04-30",null,1042.21,"2022-05-17",null,null,null,null,null,null,11]
[null,null,null,null,null,null,null,null,null,null,null,null,null,"2022-05-31",null,949.49,"2022-06-07",null,null,null,null,null,null,11]
[null,null,null,null,null,null,null,null,null,null,null,null,null,"2022-06-30",null,944.04,"2022-07-19",null,null,null,null,null,null,11]
[12,"Муниципальная программа \"Развитие образования\"","нет","925 0000 0000000000 244","№ 166-Б2","2021-12-30","Услуги электросвязи",2000,{"$f":"IF(X90 = 12, H90 + SUM(S90:S94) - SUM(T90:T94) - SUM(P90:P94) - V90,0)","v":1860.79},7707049388,"ПАО \"Ростелеком\"","нет","с 01.01.2022 по 31.12.2022","2022-01-31","Не позднее 30 календарных дней с момента подписания Заказчиком и Подрядчиком акта приема-сдачи и предоставленного Подрядчиком документа на оплату",24.77,"2022-02-10",null,null,null,null,null,null,12]
[null,null,null,null,null,null,null,null,null,null,null,null,null,"2022-02-28",null,"13.44","2022-03-16",null,null,null,null,null,null,12]
[null,null,null,null,null,null,null,null,null,null,null,null,null,"2022-03-31",null,11.14,"2022-04-06",null,null,null,null,null,null,12]
[null,null,null,null,null,null,null,null,null,null,null,null,null,"2022-04-30",null,55.68,"2022-05-17",null,null,null,null,null,null,12]
[null,null,null,null,null,null,null,null,null,null,null,null,null,"2022-06-30",null,47.62,"2022-07-19",null,null,null,null,null,null,12]
[13,"Муниципальная программа \"Развитие образования\"","нет","925 0000 0000000000 244","№ 6/5-ТК","2021-12-30","Договор поставки нефтепродуктов",508820,{"$f":"IF(X95 = 13, H95 + SUM(S95:S97) - SUM(T95:T97) - SUM(P95:P97) - V95,0)","v":0.39999999999417923},2310195709,"ООО \"Альянс Розница\"","нет","С 01.01.2021 по 31.03.2021","2021-01-31","Не позднее 30 календарных дней с момента подписания Заказчиком и Подрядчиком акта приема-сдачи и предоставленного Подрядчиком документа на оплату",76610,"2022-03-01",null,null,null,null,252038,null,13]
[null,null,null,null,null,null,null,null,null,null,null,null,null,"2022-02-28",null,95918,"2022-03-15",null,null,null,null,null,null,13]
[null,null,null,null,null,null,null,null,null,null,null,null,null,"2022-03-31",null,84253.6,"2022-04-13",null,null,null,null,null,null,13]
[14,"Муниципальная программа \"Развитие образования\"","нет","925 0000 0000000000 244","21/22","2021-12-30","Выполнение работ (оказание услуг) по предоставлению охраняемой автостоянки, предрейсовому и послерейсовому то автотранспорта и и медицинскому водителейосвидетельствованию",106880,{"$f":"IF(X98 = 16, H98 + SUM(S98:S103) - SUM(T98:T103) - SUM(P98:P103) - V98,0)","v":50700},235305769122,"ИП Барма","нет",null,"2022-01-31","Не позднее 30 календарных дней с момента подписания Заказчиком и Подрядчиком акта приема-сдачи и предоставленного Подрядчиком документа на оплату",8400,"2022-02-17",null,null,null,null,null,null,16]
[null,null,null,null,null,null,null,null,null,null,null,null,null,"2022-02-28",null,9340,"2022-03-15",null,null,null,null,null,null,16]
[null,null,null,null,null,null,null,null,null,null,null,null,null,"2022-03-31",null,9180,"2022-04-13",null,null,null,null,null,null,16]
[null,null,null,null,null,null,null,null,null,null,null,null,null,"2022-04-30",null,10100,"2022-05-16",null,null,null,null,null,null,16]
[null,null,null,null,null,null,null,null,null,null,null,null,null,"2022-05-31",null,11960,"2022-06-24",null,null,null,null,null,null,16]
[null,null,null,null,null,null,null,null,null,null,null,null,null,"2022-06-30",null,7200,"2022-07-08",null,null,null,null,null,null,16]
[15,"Муниципальная программа \"Развитие образования\"","нет","925 0000 0000000000 244","5539","2022-03-16","стол",10930.36,{"$f":"IF(X104 = 17, H104 + SUM(S104:S104) - SUM(T104:T104) - SUM(P104:P104) - V104,0)","v":0},2312068671,"ООО \"Сервмс-Юг-ККМ\"","нет",null,"2022-02-18","Не позднее 30 календарных дней с момента подписания Заказчиком и Подрядчиком акта приема-сдачи и предоставленного Подрядчиком документа на оплату",10930.36,"2022-03-29",null,null,null,null,null,null,17]
[16,"Муниципальная программа \"Развитие образования\"","нет","925 0000 0000000000 244","26","2022-03-31","бензин",392000,{"$f":"IF(X105 = 18, H105 + SUM(S105:S107) - SUM(T105:T107) - SUM(P105:P107) - V105,0)","v":196668.5},2310195709,"ООО \"Альянс Розница\"","нет",null,"2022-04-30","Не позднее 30 календарных дней с момента подписания Заказчиком и Подрядчиком акта приема-сдачи и предоставленного Подрядчиком документа на оплату",103655.5,"2022-05-16",null,null,null,null,null,null,18]
[null,null,null,null,null,null,null,null,null,null,null,null,null,"2022-05-31",null,84476,"2022-06-08",null,null,null,null,null,null,18]
[null,null,null,null,null,null,null,null,null,null,null,null,null,"2022-06-30",null,7200,"2022-07-08",null,null,null,null,null,null,18]
[17,"Муниципальная программа \"Развитие образования\"","нет","925 0000 0000000000 244","56","2022-04-11","поставка учебной литературы",126663.35,{"$f":"IF(X108 = 19, H108 + SUM(S108:S110) - SUM(T108:T110) - SUM(P108:P110) - V108,0)","v":7413.4500000000116},7715995942,"АО \"Издательство \"Просвещение\"","нет",null,null,"Не позднее 30 календарных дней с момента подписания Заказчиком и Подрядчиком акта приема-сдачи и предоставленного Подрядчиком документа на оплату",102316.5,"2022-05-06",null,null,null,null,null,null,19]
[null,null,null,null,null,null,null,null,null,null,null,null,null,null,null,16174.4,"2022-06-27",null,null,null,null,null,null,19]
[null,null,null,null,null,null,null,null,null,null,null,null,null,null,null,759,"2022-07-29",null,null,null,null,null,null,19]
[18,"Муниципальная программа \"Развитие образования\"","нет","925 0000 0000000000 244","6-22-2","2022-04-19","дератизация",6500,{"$f":"IF(X111 = 20, H111 + SUM(S111:S111) - SUM(T111:T111) - SUM(P111:P111) - V111,0)","v":0},null,"ООО \"Дератизация\"","нет",null,"2022-06-14","Не позднее 30 календарных дней с момента подписания Заказчиком и Подрядчиком акта приема-сдачи и предоставленного Подрядчиком документа на оплату",6500,"2022-06-15",null,null,null,null,null,null,20]
[19,"Муниципальная программа \"Развитие образования\"","нет","925 0000 000000000 244","286","2022-04-26","заправка картриджа",4050,{"$f":"IF(X112 = 21, H112 + SUM(S112:S112) - SUM(T112:T112) - SUM(P112:P112) - V112,0)","v":0},235300809163,"ИП Коваленко","нет",null,null,"Не позднее 30 календарных дней с момента подписания Заказчиком и Подрядчиком акта приема-сдачи и предоставленного Подрядчиком документа на оплату",4050,"2022-05-16",null,null,null,null,null,null,21]
[20,"Муниципальная программа \"Развитие образования\"","нет","925 0000 000000000 244","36","2022-04-26","Считыватель ",7000,{"$f":"IF(X113 = 22, H113 + SUM(S113:S113) - SUM(T113:T113) - SUM(P113:P113) - V113,0)","v":0},235305540660,"ИП Карлов","нет",null,"2022-04-26","Не позднее 30 календарных дней с момента подписания Заказчиком и Подрядчиком акта приема-сдачи и предоставленного Подрядчиком документа на оплату",7000,"2022-04-26",null,null,null,null,null,null,22]
[21,"Муниципальная программа \"Развитие образования\"","нет","925 0000 000000000 244","6","2022-04-15","образовательные услуги",7400,{"$f":"IF(X114 = 23, H114 + SUM(S114:S114) - SUM(T114:T114) - SUM(P114:P114) - V114,0)","v":0},2312062743,"ГБОУ ИРО Краснодарского края","нет",null,"2022-04-30","Не позднее 30 календарных дней с момента подписания Заказчиком и Подрядчиком акта приема-сдачи и предоставленного Подрядчиком документа на оплату",7400,"2022-05-18",null,null,null,null,null,null,23]
[22,"Муниципальная программа \"Развитие образования\"","нет","925 0000 000000000 244","16","2022-03-30","поставка учебной литературы",14400,{"$f":"IF(X115 = 24, H115 + SUM(S115:S115) - SUM(T115:T115) - SUM(P115:P115) - V115,0)","v":0},2310047193,"ООО \"ОИПЦ \"Перспективы образования\"","нет",null,null,"Не позднее 30 календарных дней с момента подписания Заказчиком и Подрядчиком акта приема-сдачи и предоставленного Подрядчиком документа на оплату",14400,"2022-06-27",null,null,null,null,null,null,24]
[23,"Муниципальная программа \"Развитие образования\"","нет","925 0000 000000000 244","30","2022-03-30","поставка учебно-педагогической документации",2215,{"$f":"IF(X116 = 25, H116 + SUM(S116:S116) - SUM(T116:T116) - SUM(P116:P116) - V116,0)","v":0},2310132554,"ООО \"Краснодарский учколлектор\"","нет",null,null,"Не позднее 30 календарных дней с момента подписания Заказчиком и Подрядчиком акта приема-сдачи и предоставленного Подрядчиком документа на оплату",2215,"2022-05-06",null,null,null,null,null,null,25]
[24,"Муниципальная программа \"Развитие образования\"","нет","925 0000 000000000 244","30","2022-05-17","бумага",14580,{"$f":"IF(X117 = 26, H117 + SUM(S117:S118) - SUM(T117:T118) - SUM(P117:P118) - V117,0)","v":0},235306030599,"ИП Чуприков","нет",null,null,"в течение 10 рабочих дней",14580,"2022-05-18",null,null,null,null,null,null,26]
[null,null,null,null,null,null,null,null,null,null,null,null,null,null,null,null,null,null,null,null,null,null,null,26]
[25,"Муниципальная программа \"Развитие образования\"","нет","925 0000 000000000 244","6/22","2022-05-23","ремонт пищеблока",500000,{"$f":"IF(X119 = 27, H119 + SUM(S119:S119) - SUM(T119:T119) - SUM(P119:P119) - V119,0)","v":500000},235302264998,"ИП Жук","нет",null,null,"в течение 10 рабочих дней",null,null,null,null,null,null,null,null,27]
[26,"Муниципальная программа \"Развитие образования\"","нет","925 0000 000000000 244","69","2022-06-07","заправка картриджа",1865,{"$f":"IF(X120 = 28, H120 + SUM(S120:S120) - SUM(T120:T120) - SUM(P120:P120) - V120,0)","v":0},235300809163,"ИП Коваленко","нет",null,null,"в течение 10 рабочих дней",1865,"2022-06-15",null,null,null,null,null,null,28]
[27,"Муниципальная программа \"Развитие образования\"","нет","925 0000 000000000 244","170/22","2022-06-30","стоянка, то",26500,{"$f":"IF(X121 = 29, H121 + SUM(S121:S121) - SUM(T121:T121) - SUM(P121:P121) - V121,0)","v":26500},235305769122,"ИП Барма","нет",null,null,"в течение 7 рабочих дней",null,null,null,null,null,null,null,null,29]
[28,"Муниципальная программа \"Развитие образования\"","нет","925 0000 000000000 244","49","2022-07-01","мебель",348000,{"$f":"IF(X122 = 30, H122 + SUM(S122:S122) - SUM(T122:T122) - SUM(P122:P122) - V122,0)","v":0},2311204586,"ООО \"ТИТ-Мебель\"","нет",null,null,"в течение 7 рабочих дней",348000,"2022-07-27",null,null,null,null,null,null,30]
[29,"Муниципальная программа \"Развитие образования\"","нет","925 0000 000000000 244",null,null,null,null,{"$f":"IF(X123 = 31, H123 + SUM(S123:S123) - SUM(T123:T123) - SUM(P123:P123) - V123,0)","v":0},null,null,null,null,null,null,null,null,null,null,null,null,null,null,31]
[null,null,null,null,null,null,null,null,null,null,null,null,null,null,null,null,null,null,null,null,null,null,null,32]

{"sheet":"Ед.поставщик за искл. п.4,5 ч.1","index":3,"n_rows":14,"n_cols":22,"rows_kept":14,"cut":false,"hidden":false,"merged":[[8,0,11,0],[8,1,11,1],[8,2,11,2],[1,16,1,18],[1,4,1,5],[1,11,1,12],[8,12,11,12],[8,18,11,18],[8,20,11,20],[8,3,11,3],[8,4,11,4],[8,5,11,5],[8,6,11,6],[8,7,11,7],[8,8,11,8],[8,9,11,9],[8,10,11,10],[8,19,11,19]]}
[]
[null,null,null,null,"Сумма заключенных контрактов",null,{"$f":"SUM(G9:G9999)","v":743423.69},null,null,null,null,"Сумма средств выплаченных по контрактам",null,{"$f":"SUM(N9:N9999)","v":727733.98},null,null,"Общая сумма расторжений по контрактам/договорам",null,null,{"$f":"SUM(T9:T9999)","v":15689.71}]
[]
[]
[]
["№ п/п","№ в реестре контрактов ","Код бюджетной классификации","№ контракта","Дата заключения","Предмет договора/контракта","Цена контракта (Объем финансового обеспечения подлежащий к оплате в текущем фин. году)","Остаток по контракту","ИНН поставщика (подрядчика, исполнителя) ","Поставщик (подрядчик, исполнитель)","Сроки поставки товара (оказания услуги, выполнения работы), согласно контракта; Предоставление документов на оплату Закзчику","Фактическая дата поставки товара (оказания услуги, выполнения работы) и (или) предоставление документов на оплату и подписание документов о приемке","Сроки оплаты согласно договора/контракта","Сумма согласно документа об исполнении контракта заказчиком","Фактическая дата оплаты","Изменение контракта (№, дата)","Изменение контракта (увеличение цены контракта в рублях)","Изменение контракта (уменьшение цены контракта в рублях)","Расторжение контракта (№, дата)","Сумма расторжения","Примечание"]
["1","2","3","4","5","6","7","8","9","10","11","12","13","14","15","16","17","18","19","20","21"]
["1","3235301125818100175","9020104 5210000190244","123","2019-12-24","Поставка электрической энергии",100000,90000,2308091759,"АО \"НЭСК\"","Поставка электрической энергии осуществляется постоянно, в течение срока действия контракта","2019-12-02","До 10 числа расчетного месяца в размере 30%, до 25 числа расчетного месяца 40%, до 18 числа месяца, следующего за расчетным",10000,"2019-01-24",null,null,null,null,null,"Пример"]
[1,null,"925 0000 0000000000 244","1401","2021-12-30","Поставка тепловой энергии",743423.69,{"$f":"IF(V9 = 1, G9 + SUM(Q9:Q12) - SUM(R9:R12) - SUM(N9:N12) - T9,0)","v":-3.637978807091713E-11},2312054894,"АО \"АТЭК\"","Согласно графика","2022-01-31","до 25 числа",226666.12,"2022-02-24",null,null,null,null,15689.71,null,1]
[null,null,null,null,null,null,null,null,null,null,null,"2022-02-28",null,211302.06,"2022-03-17",null,null,null,null,null,null,1]
[null,null,null,null,null,null,null,null,null,null,null,"2021-03-31",null,199763.59,"2022-04-19",null,null,null,null,null,null,1]
[null,null,null,null,null,null,null,null,null,null,null,"2022-04-30",null,90002.21,"2022-05-25",null,null,null,null,null,null,1]
[2,null,null,null,null,null,null,{"$f":"IF(V13 = 2, G13 + SUM(Q13:Q13) - SUM(R13:R13) - SUM(N13:N13) - T13,0)","v":0},null,null,null,null,null,null,null,null,null,null,null,null,null,2]
[null,null,null,null,null,null,null,null,null,null,null,null,null,null,null,null,null,null,null,null,null,3]

{"sheet":"Состоявшиеся аукционы","index":4,"n_rows":9,"n_cols":30,"rows_kept":9,"cut":false,"hidden":false,"merged":[[1,4,1,5],[1,14,1,15],[1,24,1,26],[1,19,1,20]]}
[]
[null,null,null,null,"Сумма начальных (максимальных) цен контрактов",null,{"$f":"SUM(G9:G9999)","v":0},null,null,null,null,null,null,null,"Сумма заключенных контрактов",null,{"$f":"SUM(Q9:Q9999)","v":0},null,null,"Сумма средств выплаченных по контрактам",null,{"$f":"SUM(V9:V9999)","v":0},null,null,"Общая сумма расторжений по контрактам/договорам",null,null,{"$f":"SUM(AB9:AB9999)","v":0}]
[]
[]
[]
["№ п/п","Наименование муниципальной программы, национального или регионального проекта","ИКЗ (Идентификационный код закупки)","Код бюджетной классификации","№ извещения","Объект закупки","Н(М)ЦК","Экономия","Количество поданных заявок","Количество заявок признанные несоответствующими","СМП и СОНО","№ в реестре контрактов","№ контракта","Дата заключения","ИНН поставщика (подрядчика, исполнителя) ","Поставщик (подрядчик, исполнитель)","Цена контракта","Остаток по контракту","Сроки поставки товара (оказания услуги, выполнения работы), согласно контракта","Фактическая дата поставки товара (оказания услуги, выполнения работы) и (или) предоставление документов на оплату и подписание документов о приемке","Сроки оплаты согласно контракта","Сумма согласно документа об исполнении контракта заказчиком","Фактическая дата оплаты","Изменение контракта (№, дата)","Изменение контракта (увеличение цены контракта в рублях)","Изменение контракта (уменьшение цены контракта в рублях)","Расторжение контракта (№, дата)","Сумма расторжения","Примечание"]
["1","2","3","4","5","6","7","8","9","10","11","12","13","14","15","16","17","18","19","20","21","22","23","24","25","26","27","28","29"]
["1",null,"193235301125823530100103000010000244 ","902 0113 1210310010 244","0818300019919000194","Поставка картриджа и тонер-картриджей ",15500.01,{"$f":"G8-Q8","v":6725},6,0,"Нет","3235301125819000079","Ф.2019.412162","2019-07-09","3443923035"," ООО \"АНАЛИТИК ЦЕНТР\" ",8775.01,{"$f":"Q8-V8","v":0},"В течение 20 рабочих дней со дня заключения сторонами муниципального контракта","2019-07-31","Не позднее 30 календарных дней с момента подписания Заказчиком документа о приемке выполненных работ и представленного Подрядчиком документа на оплату",8775.01,"2019-08-19",null,null,null,null,null,"Пример"]
[null,null,null,null,null,null,null,null,null,null,null,null,null,null,null,null,null,null,null,null,null,null,null,null,null,null,null,null,null,2]

{"sheet":"Несостоявшиеся аукционы","index":5,"n_rows":9,"n_cols":30,"rows_kept":9,"cut":false,"hidden":false,"merged":[[1,4,1,5],[1,14,1,15],[1,24,1,26],[1,19,1,20]]}
[]
[null,null,null,null,"Сумма начальных (максимальных) цен контрактов",null,{"$f":"SUM(G9:G9999)","v":0},null,null,null,null,null,null,null,"Сумма заключенных контрактов",null,{"$f":"SUM(Q9:Q9999)","v":0},null,null,"Сумма средств выплаченных по контрактам",null,{"$f":"SUM(V9:V9999)","v":0},null,null,"Общая сумма расторжений по контрактам/договорам",null,null,{"$f":"SUM(AB9:AB9999)","v":0}]
[]
[]
[]
["№ п/п","Наименование муниципальной программы, национального или регионального проекта","ИКЗ (Идентификационный код закупки)","Код бюджетной классификации","№ извещения","Объект закупки","Н(М)ЦК","Экономия","Количество поданных заявок","Количество заявок признанные несоответствующими","СМП и СОНО","№ в реестре контрактов","№ контракта","Дата заключения","ИНН поставщика (подрядчика, исполнителя) ","Поставщик (подрядчик, исполнитель)","Цена контракта (Объем финансового обеспечения подлежащий к оплате в текущем фин. году)","Остаток по контракту","Сроки поставки товара (оказания услуги, выполнения работы), согласно контракта","Фактическая дата поставки товара (оказания услуги, выполнения работы) и (или) предоставление документов на оплату и подписание документов о приемке","Сроки оплаты согласно контракта","Сумма согласно документа об исполнении контракта заказчиком","Фактическая дата оплаты","Изменение контракта (№, дата)","Изменение контракта (увеличение цены контракта в рублях)","Изменение контракта (уменьшение цены контракта в рублях)","Расторжение контракта (№, дата)","Сумма расторжения","Примечание"]
["1","2","3","4","5","6","7","8","9","10","11","12","13","14","15","16","17","18","19","20","21","22","23","24","25","26","27","28","29"]
["1",null,"193235301125823530100103000010000244 ","902 0113 1210310010 244","0818300019919000194","Поставка картриджа и тонер-картриджей ",15500.01,{"$f":"G8-Q8","v":6725},6,0,"Нет","3235301125819000079","Ф.2019.412162","2019-07-09","3443923035"," ООО \"АНАЛИТИК ЦЕНТР\" ",8775.01,{"$f":"Q8-V8","v":0},"В течение 20 рабочих дней со дня заключения сторонами муниципального контракта","2019-07-31","Не позднее 30 календарных дней с момента подписания Заказчиком документа о приемке выполненных работ и представленного Подрядчиком документа на оплату",8775.01,"2019-08-19",null,null,null,null,null,"Пример"]
[null,null,null,null,null,null,null,null,null,null,null,null,null,null,null,null,null,null,null,null,null,null,null,null,null,null,null,null,null,2]

{"sheet":"Иные конкурентные закупки","index":6,"n_rows":27,"n_cols":30,"rows_kept":27,"cut":false,"hidden":false,"merged":[[23,28,25,28],[23,3,25,3],[23,4,25,4],[23,5,25,5],[23,6,25,6],[23,7,25,7],[23,8,25,8],[23,9,25,9],[23,10,25,10],[23,11,25,11],[23,12,25,12],[23,13,25,13],[23,14,25,14],[23,15,25,15],[23,16,25,16],[23,17,25,17],[8,0,22,0],[3,15,3,17],[1,4,1,5],[1,14,1,15],[1,24,1,26],[1,19,1,20],[8,20,22,20],[8,26,22,26],[8,1,22,1],[8,15,22,15],[8,16,22,16],[8,17,22,17],[8,27,22,27],[8,2,22,2],[8,18,22,18],[8,28,22,28],[8,3,22,3],[8,4,22,4],[8,5,22,5],[8,6,22,6],[8,7,22,7],[8,8,22,8],[8,9,22,9],[8,10,22,10],[8,11,22,11],[8,12,22,12],[8,13,22,13],[8,14,22,14],[23,0,25,0],[23,20,25,20],[23,26,25,26],[23,1,25,1],[23,27,25,27],[23,2,25,2],[23,18,25,18]]}
[]
[null,null,null,null,"Сумма начальных (максимальных) цен контрактов",null,{"$f":"SUM(G9:G10000)","v":1103383.5},null,null,null,null,null,null,null,"Сумма заключенных контрактов",null,{"$f":"SUM(Q9:Q10000)","v":1103383.5},null,null,"Сумма средств выплаченных по контрактам",null,{"$f":"SUM(V9:V10000)","v":551861.60000000009},null,null,"Общая сумма расторжений по контрактам/договорам",null,null,{"$f":"SUM(AB9:AB10000)","v":170257.9}]
[]
[]
[]
["№ п/п","Наименование муниципальной программы, национального или регионального проекта","ИКЗ (Идентификационный код закупки)","Код бюджетной классификации","№ извещения","Объект закупки","Н(М)ЦК","Экономия","Количество поданных заявок","Количество заявок признанные несоответствующими","СМП и СОНО","№ в реестре контрактов","№ контракта","Дата заключения","ИНН поставщика (подрядчика, исполнителя) ","Поставщик (подрядчик, исполнитель)","Цена контракта","Остаток по контракту","Сроки поставки товара (оказания услуги, выполнения работы), согласно контракта","Фактическая дата поставки товара (оказания услуги, выполнения работы) и (или) предоставление документов на оплату и подписание документов о приемке","Сроки оплаты согласно контракта","Сумма согласно документа об исполнении контракта заказчиком","Фактическая дата оплаты","Изменение контракта (№, дата)","Изменение контракта (увеличение цены контракта в рублях)","Изменение контракта (уменьшение цены контракта в рублях)","Расторжение контракта (№, дата)","Сумма расторжения","Примечание"]
[1,2,3,4,5,6,7,8,9,10,11,12,13,14,15,16,17,18,19,20,21,22,23,24,25,26,27,28,29]
["1",null,"193235301125823530100103000010000244 ","902 0113 1210310010 244","0818300019919000194","Поставка картриджа и тонер-картриджей ",15500.01,{"$f":"G8-Q8","v":6725},6,0,"Нет","3235301125819000079","Ф.2019.412162","2019-07-09","3443923035"," ООО \"АНАЛИТИК ЦЕНТР\" ",8775.01,{"$f":"Q8-V8","v":0},"В течение 20 рабочих дней со дня заключения сторонами муниципального контракта","2019-07-31","Не позднее 30 календарных дней с момента подписания Заказчиком документа о приемке выполненных работ и представленного Подрядчиком документа на оплату",8775.01,"2019-08-19",null,null,null,null,null,"Пример"]
[1,null,"223235301409723530100100100015629244",null,null,"услуги по организации горячего питания",545683.5,{"$f":"IF(AD9 = 1, G9 - Q9,0)","v":0},1,null,"да",null,"0818300019922000015","2022-03-21",2353020735,"ООО \"Тимашевское ПРТ райпо\"",545683.5,{"$f":"IF(AD9 = 1, Q9 + SUM(Y9:Y23) - SUM(Z9:Z23) - SUM(V9:V23) - AB9,0)","v":-2.9103830456733704E-11},null,"2022-04-13","В течение 10 рабочих дней",25674,"2022-04-21",null,null,null,null,170257.9,null,1]
[null,null,null,null,null,null,null,null,null,null,null,null,null,null,null,null,null,null,null,"2022-04-13",null,4852.4399999999996,"2022-04-29",null,null,null,null,null,null,1]
[null,null,null,null,null,null,null,null,null,null,null,null,null,null,null,null,null,null,null,"2022-04-13",null,76020.66,"2022-04-29",null,null,null,null,null,null,1]
[null,null,null,null,null,null,null,null,null,null,null,null,null,null,null,null,null,null,null,"2022-04-27",null,24882,"2022-05-16",null,null,null,null,null,null,1]
[null,null,null,null,null,null,null,null,null,null,null,null,null,null,null,null,null,null,null,"2022-04-27",null,4702.75,"2022-05-16",null,null,null,null,null,null,1]
[null,null,null,null,null,null,null,null,null,null,null,null,null,null,null,null,null,null,null,"2022-04-27",null,73675.55,"2022-05-16",null,null,null,null,null,null,1]
[null,null,null,null,null,null,null,null,null,null,null,null,null,null,null,null,null,null,null,"2022-05-11",null,11946,"2022-05-25",null,null,null,null,null,null,1]
[null,null,null,null,null,null,null,null,null,null,null,null,null,null,null,null,null,null,null,"2022-05-13",null,7348,"2022-05-25",null,null,null,null,null,null,1]
[null,null,null,null,null,null,null,null,null,null,null,null,null,null,null,null,null,null,null,"2022-05-11",null,35372.080000000002,"2022-05-25",null,null,null,null,null,null,1]
[null,null,null,null,null,null,null,null,null,null,null,null,null,null,null,null,null,null,null,"2022-05-11",null,2257.8200000000002,"2022-05-25",null,null,null,null,null,null,1]
[null,null,null,null,null,null,null,null,null,null,null,null,null,null,null,null,null,null,null,"2022-05-13",null,21757.41,"2022-05-25",null,null,null,null,null,null,1]
[null,null,null,null,null,null,null,null,null,null,null,null,null,null,null,null,null,null,null,"2022-05-13",null,1388.79,"2022-05-25",null,null,null,null,null,null,1]
[null,null,null,null,null,null,null,null,null,null,null,null,null,null,null,null,null,null,null,"2022-05-25",null,20614,"2022-05-30",null,null,null,null,null,null,1]
[null,null,null,null,null,null,null,null,null,null,null,null,null,null,null,null,null,null,null,"2022-05-25",null,61038.01,"2022-05-30",null,null,null,null,null,null,1]
[null,null,null,null,null,null,null,null,null,null,null,null,null,null,null,null,null,null,null,"2022-05-25",null,3896.09,"2022-05-30",null,null,null,null,null,null,1]
[2,null,"223235301409723530100100090018010244",null,null,"оказание охранных услуг",557700,{"$f":"IF(AD24 = 2, G24 - Q24,0)","v":0},null,null,"да",null,"0818300019922000031","2022-04-04",2308080429,"ООО \"Охранное предприятие \"Телохранитель -Секьюрити\"",557700,{"$f":"IF(AD24 = 2, Q24 + SUM(Y24:Y26) - SUM(Z24:Z26) - SUM(V24:V26) - AB24,0)","v":381264},null,"2022-05-12","В течение 10 рабочих дней",52728,"2022-05-17",null,null,null,null,null,null,2]
[null,null,null,null,null,null,null,null,null,null,null,null,null,null,null,null,null,null,null,"2022-06-03",null,62868,"2022-06-07",null,null,null,null,null,null,2]
[null,null,null,null,null,null,null,null,null,null,null,null,null,null,null,null,null,null,null,"2022-07-06",null,60840,"2022-07-11",null,null,null,null,null,null,2]
[null,null,null,null,null,null,null,null,null,null,null,null,null,null,null,null,null,null,null,null,null,null,null,null,null,null,null,null,null,3]

{"sheet":"Настройки","index":7,"n_rows":17,"n_cols":11,"rows_kept":17,"cut":false,"hidden":true,"merged":[[15,3,16,3],[0,3,1,3],[3,3,4,3],[6,3,7,3],[9,3,10,3],[12,3,13,3]]}
[83,48,9,"Ед. поставщик п.4 ч.1 ",null,"Index","Index","Index","Index","Index","Index"]
["TekStrokaP4","TekNomerP4","NachStrokaP4",null,null,68,31,2,1,1,2]
[null,null,null,null,null,"Index+1","Index+1","Index+1","Index+1","Index+1","Index+1"]
[123,29,9,"Ед. поставщик п.5 ч.1 ",null,69,32,3,2,2,3]
["TekStrokaP5","TekNomerP5","NachStrokaP5"]
[]
[13,2,9,"Ед.поставщик за искл. п.4,5 ч.1"]
["TekStrokaSt93","TekNomerSt93","NachStrokaSt93"]
[]
[8,0,9,"Состоявшиеся аукционы"]
["TekStrokaSEA","TekNomerSEA","NachStrokaSEA"]
[]
[8,0,9,"Несостоявшиеся аукционы"]
["TekStrokaNEA","TekNomerNEA","NachStrokaNEA"]
[]
[26,2,9,"Иные конкурентные закупки"]
["TekStrokaIKZ","TekNomerIKZ","NachStrokaIKZ"]